bitfinex/quotes_ETHUSD_20250708
["timestamp","ask_amount","ask_price","bid_price","bid_amount"]
[1752011465867,12.93210471,2612.9,2612.8,0.001]
[1752011466166,11.36560471,2612.9,2612.8,0.001]
[1752011471839,12.90900471,2612.9,2612.8,0.001]
[1752011472162,22.90900471,2612.9,2612.8,0.001]
[1752011475372,23.90900471,2612.9,2612.8,0.001]
[1752011481183,23.89300471,2612.9,2612.8,0.001]
[1752011482466,22.34960471,2612.9,2612.8,0.001]
[1752011483289,23.91400471,2612.9,2612.8,0.001]
[1752011484798,24.46400471,2612.9,2612.8,0.001]
[1752011486687,22.89960471,2612.9,2612.8,0.001]
[1752011490195,11.1932,2612.9,2612.8,0.001]
[1752011490403,17.0472,2612.9,2612.8,8.16155089]
[1752011491097,7.0472,2612.9,2612.8,8.16155089]
[1752011491815,1.1932,2612.9,2612.8,8.16155089]
[1752011492094,0.002,2612.9,2612.8,12.18006258]
[1752011492261,5.856,2612.9,2612.8,13.78081227]
[1752011493459,0.002,2612.9,2612.8,13.78081227]
[1752011494210,0.002,2612.9,2612.8,20.35016316]
[1752011494859,0.002,2612.9,2612.8,22.6295922]
[1752011495063,1e-08,2612.9,2612.8,30.35016316]
[1752011495474,1e-08,2612.9,2612.8,30.90016316]
[1752011495879,1e-08,2612.9,2612.8,34.319335]
[1752011496797,1e-08,2612.9,2612.8,25.96599553]
[1752011497308,1e-08,2612.9,2612.8,29.38368088]
[1752011498299,1e-08,2612.9,2612.8,29.38178944]
[1752011500274,1e-08,2612.9,2612.8,25.96599553]
[1752011500898,1e-08,2612.9,2612.8,37.66899553]
[1752011504206,1e-08,2612.9,2612.8,39.94265196]
[1752011508919,1e-08,2612.9,2612.8,37.66899553]
[1752011509121,1e-08,2612.9,2612.8,37.11899553]
[1752011514427,1e-08,2612.9,2612.8,39.39370686]
[1752011515187,1e-08,2612.9,2612.8,37.11899553]
[1752011515499,1e-08,2612.9,2612.8,39.39437883]
[1752011516296,1e-08,2612.9,2612.8,37.11899553]
[1752011517018,1e-08,2612.9,2612.8,39.39496349]
[1752011517218,1e-08,2612.9,2612.8,37.11899553]
[1752011519220,1e-08,2612.9,2612.8,40.53478944]
[1752011521224,1e-08,2612.9,2612.8,37.11899553]
[1752011522928,1e-08,2612.9,2612.8,42.04282712]
[1752011524296,1e-08,2612.9,2612.8,47.15127521]
[1752011526799,1e-08,2612.9,2612.8,37.66745625]
[1752011530127,1e-08,2613.0,2612.9,15.95226521]
[1752011530326,1e-08,2613.0,2612.9,24.3713933]
[1752011530707,1e-08,2613.0,2612.9,19.80115769]
[1752011531321,0.002,2613.5,2613.4,23.65792786]
[1752011531536,0.002,2613.5,2613.4,38.09337561]
[1752011531908,0.002,2613.5,2613.4,38.28457561]
[1752011533434,0.002,2613.5,2613.4,41.70878711]
[1752011537613,0.002,2613.5,2613.4,38.28457561]
[1752011539447,1e-08,2613.5,2613.4,38.83457561]
[1752011543612,0.002,2614.0,2613.4,38.83457561]
[1752011543818,0.002,2614.0,2613.8,14.30653715]
[1752011544018,0.002,2614.0,2613.8,26.17873715]
[1752011545125,0.002,2614.0,2613.8,23.90104229]
[1752011545828,0.002,2614.0,2613.8,26.17824205]
[1752011549425,0.002,2614.0,2613.8,36.17824205]
[1752011549754,0.002,2614.0,2613.9,3.82570105]
[1752011549949,0.002,2614.0,2613.9,6.12155028]
[1752011553743,0.002,2614.0,2613.9,16.12155028]
[1752011553941,0.002,2614.0,2613.9,16.10263033]
[1752011556440,0.002,2614.1,2614.0,13.8255547]
[1752011556638,0.002,2614.1,2614.0,31.627713]
[1752011556838,0.002,2614.1,2614.0,38.37689209]
[1752011557358,0.002,2614.1,2614.0,36.09862627]
[1752011557856,0.0701032,2614.2,2614.1,13.82540836]
[1752011558071,0.0701032,2614.2,2614.1,16.10352194]
[1752011558362,1e-08,2614.2,2614.1,25.2741352]
[1752011558959,1e-08,2614.2,2614.1,27.20147243]
[1752011560363,1e-08,2615.0,2614.9,5.40283802]
[1752011560564,1e-08,2615.0,2614.9,36.21394133]
[1752011560748,1e-08,2615.0,2614.9,36.19505796]
[1752011561156,1e-08,2615.0,2614.9,34.61645796]
[1752011563239,1e-08,2615.0,2614.9,36.12095796]
[1752011566374,1e-08,2615.0,2614.9,34.61645796]
[1752011566865,1e-08,2615.0,2614.9,36.89417046]
[1752011567071,1e-08,2615.0,2614.9,34.61645796]
[1752011567476,1e-08,2615.0,2614.9,36.88917209]
[1752011568047,1e-08,2615.0,2614.9,34.61645796]
[1752011568460,1e-08,2615.0,2614.9,36.88836776]
[1752011570275,1e-08,2615.0,2614.9,37.07956776]
[1752011570658,1e-08,2615.0,2614.9,35.28145731]
[1752011570958,1e-08,2615.0,2614.9,39.75242671]
[1752011571161,1e-08,2615.0,2614.9,36.33585796]
[1752011573984,1e-08,2615.0,2614.9,39.75242671]
[1752011574389,1e-08,2615.0,2614.9,36.33585796]
[1752011579366,1e-08,2615.0,2614.9,38.60533986]
[1752011580463,1.60360001,2615.5,2615.4,3.82350692]
[1752011580661,1.60360001,2615.5,2615.4,23.68500726]
[1752011580888,1.60360001,2615.5,2615.4,23.87540726]
[1752011589691,1.60360001,2615.5,2615.4,25.57772963]
[1752011589975,1.60360001,2615.5,2615.4,25.57872963]
[1752011590376,1.60560001,2615.5,2615.4,25.57872963]
[1752011592199,0.002,2615.5,2615.4,26.90375266]
[1752011592386,0.002,2615.5,2615.4,25.20143029]
[1752011594483,0.002,2615.5,2615.4,27.47091219]
[1752011596112,0.002,2615.5,2615.4,26.14588916]
[1752011599913,0.002,2615.5,2615.4,17.94938882]
[1752011606514,1.5881,2615.5,2615.4,17.94938882]
[1752011610724,0.002,2615.5,2615.4,17.94938882]
[1752011616125,0.002,2615.5,2615.4,14.1258819]
[1752011616299,0.002,2615.5,2615.4,17.94938882]
[1752011622838,1.5284,2615.5,2615.4,2.4608819]
[1752011623052,16.44027688,2615.5,2615.4,0.001]
[1752011623330,26.25816254,2615.5,2615.4,0.001]
[1752011623902,1.6469,2614.9,2614.8,2.2694819]
[1752011624106,7.52370297,2614.9,2614.8,2.2694819]
[1752011625248,11.34794099,2614.9,2614.8,2.2694819]
[1752011625551,1.6469,2614.8,2614.6,2.2694819]
[1752011625833,1.69470663,2614.7,2614.6,2.2694819]
[1752011627512,1.6469,2614.7,2614.6,6.09415871]
[1752011629543,1.6469,2614.7,2614.6,3.82467681]
[1752011629729,1.5262,2614.6,2614.3,3.82605225]
[1752011629924,5.87781028,2614.5,2614.3,3.82605225]
[1752011632909,6.06901028,2614.5,2614.3,3.82605225]
[1752011634451,6.06901028,2614.5,2614.4,3.8249694]
[1752011634909,6.06901028,2614.5,2614.3,3.82603392]
[1752011636143,6.90376836,2614.5,2614.3,3.82603392]
[1752011637736,6.06901028,2614.5,2614.3,3.82603392]
[1752011638643,5.83,2614.6,2614.5,3.82480563]
[1752011639552,0.0478048,2614.8,2614.7,3.82453053]
[1752011639960,5.83,2614.8,2614.7,3.82453053]
[1752011641432,0.1912,2614.9,2614.7,3.82453053]
[1752011641634,5.8778048,2614.8,2614.7,3.82453053]
[1752011642820,5.8778048,2614.8,2614.6,3.82461273]
[1752011644825,5.8778048,2614.8,2614.7,3.82453053]
[1752011647162,0.0478048,2614.8,2614.7,3.82453053]
[1752011650170,2.29590528,2614.8,2614.7,3.82453053]
[1752011650340,2.29590528,2614.8,2614.5,3.82472249]
[1752011651066,2.29590528,2614.8,2614.4,3.82489493]
[1752011651270,2.48710528,2614.8,2614.4,3.82489493]
[1752011652686,1.21403703,2614.7,2614.4,3.82489493]
[1752011652838,5.87680846,2614.6,2614.4,3.82489493]
[1752011654784,5.87680846,2614.6,2614.3,4.0172387]
[1752011656687,5.46557338,2614.5,2614.3,0.1922]
[1752011656853,7.01105029,2614.4,2614.3,0.001]
[1752011657253,10.83601969,2614.4,2614.3,0.001]
[1752011657504,10.78820758,2614.4,2614.3,0.001]
[1752011657693,12.42890758,2614.4,2614.3,0.001]
[1752011657985,12.97890758,2614.4,2614.3,0.001]
[1752011658356,30.90890758,2614.4,2614.3,0.001]
[1752011660150,3.8259938,2613.7,2613.6,2.28288061]
[1752011660352,3.8259938,2613.7,2613.6,0.001]
[1752011660353,11.1582938,2613.7,2613.6,0.001]
[1752011661084,11.7082938,2613.7,2613.6,0.001]
[1752011661288,29.6382938,2613.7,2613.6,0.001]
[1752011663269,25.2623,2613.7,2613.6,0.001]
[1752011663476,25.86910048,2613.7,2613.6,0.001]
[1752011663682,15.86910048,2613.7,2613.6,0.001]
[1752011663892,13.759,2613.7,2613.6,0.001]
[1752011665287,13.76,2613.7,2613.6,0.001]
[1752011665489,15.3551,2613.7,2613.6,0.001]
[1752011666074,19.1810938,2613.7,2613.6,0.001]
[1752011667094,13.76,2613.7,2613.6,0.001]
[1752011667298,15.51859281,2613.7,2613.6,0.001]
[1752011667792,17.11369281,2613.7,2613.6,0.001]
[1752011668102,20.93968661,2613.7,2613.6,0.001]
[1752011669999,0.1912,2614.1,2613.7,1.5322]
[1752011670298,5.834,2614.2,2614.1,3.82540836]
[1752011671319,5.833,2614.2,2614.1,3.82540836]
[1752011672587,5.833,2614.2,2614.0,3.8255547]
[1752011672788,0.0478176,2614.1,2613.9,3.8256141]
[1752011673094,5.833,2614.0,2613.9,3.8256141]
[1752011675878,5.83,2614.1,2614.0,3.82547121]
[1752011678300,0.04781211,2614.4,2614.2,3.82526203]
[1752011678618,5.83,2614.3,2614.2,3.82526203]
[1752011678778,9.188,2614.5,2614.3,3.8251157]
[1752011678977,5.83,2614.4,2614.3,3.8251157]
[1752011679214,5.87781211,2614.4,2614.3,3.8251157]
[1752011679824,5.83,2614.4,2614.2,5.35516203]
[1752011680114,1.5018,2614.3,2614.2,3.82526203]
[1752011681506,1.5018,2614.3,2614.1,4.01653868]
[1752011681712,5.87681577,2614.2,2614.1,4.01653868]
[1752011682026,5.87681577,2614.2,2614.0,5.35537876]
[1752011682180,5.87681577,2614.2,2614.1,3.82540836]
[1752011683112,5.87681577,2614.2,2614.0,5.54658914]
[1752011684698,5.87681577,2614.2,2614.0,4.01668914]
[1752011685221,7.0162975,2614.2,2614.0,4.01668914]
[1752011686194,8.6118975,2614.2,2613.6,0.001]
[1752011686423,0.1912,2613.9,2613.6,0.001]
[1752011686620,5.87682309,2613.8,2613.6,0.001]
[1752011690433,1.5506,2613.7,2613.6,0.001]
[1752011690613,2.88623283,2613.7,2613.6,0.001]
[1752011690816,6.76005155,2613.7,2613.6,0.001]
[1752011700645,6.76005155,2613.7,2613.6,0.0002]
[1752011702643,6.40098987,2613.7,2613.6,0.21397393]
[1752011702827,6.11374053,2613.7,2613.6,0.21397393]
[1752011709144,6.11374053,2613.7,2613.6,0.0002]
[1752011709339,7.11374053,2613.7,2613.6,0.0002]
[1752011714561,12.94374053,2613.7,2613.6,0.0002]
[1752011714764,12.89591561,2613.7,2613.6,0.0002]
[1752011726292,10.8471938,2613.7,2613.6,0.0002]
[1752011736001,5.0171938,2613.7,2613.6,0.0002]
[1752011736209,10.89401872,2613.7,2613.6,0.0002]
[1752011736407,10.8461938,2613.7,2613.6,0.0002]
[1752011738414,12.22470464,2613.7,2613.6,0.0002]
[1752011742734,13.82976676,2613.7,2613.6,0.0002]
[1752011758620,13.82976676,2613.7,2613.6,0.0002]
[1752011762652,13.83176676,2613.7,2613.6,0.0002]
[1752011763456,5.36910468,2612.6,2612.4,0.0711032]
[1752011763623,41.97689084,2612.6,2612.4,0.0711032]
[1752011763829,41.97689084,2612.6,2611.7,0.001]
[1752011763830,3.82877708,2611.8,2611.7,0.001]
[1752011764028,10.20477708,2611.8,2611.7,0.001]
[1752011764324,10.20477708,2611.8,2611.6,0.0711032]
[1752011764325,14.37892368,2611.7,2611.6,0.0711032]
[1752011764655,18.07833802,2611.7,2611.6,0.0711032]
[1752011765665,19.52562911,2611.7,2611.6,0.0711032]
[1752011766148,3.82936355,2611.4,2611.3,0.001]
[1752011766352,10.20836355,2611.4,2611.3,0.001]
[1752011766554,10.60180423,2611.4,2611.3,0.001]
[1752011770524,10.88461693,2611.4,2611.3,0.001]
[1752011770724,12.32916568,2611.4,2611.3,0.001]
[1752011770936,10.88461693,2611.4,2611.3,0.001]
[1752011773963,12.45161693,2611.4,2611.3,0.001]
[1752011774747,13.45161693,2611.4,2611.3,0.001]
[1752011778947,14.89008164,2611.4,2611.3,0.001]
[1752011780966,22.82008164,2611.4,2611.3,0.001]
[1752011781366,32.82008164,2611.4,2611.3,0.001]
[1752011782933,42.01908164,2611.4,2611.3,0.001]
[1752011784374,46.01908164,2611.4,2611.3,0.001]
[1752011786370,46.37463911,2611.4,2611.3,0.001]
[1752011787361,36.54563911,2611.4,2611.3,0.001]
[1752011787566,42.37663911,2611.4,2611.3,0.001]
[1752011790360,46.37663911,2611.4,2611.3,0.001]
[1752011791271,46.37754077,2611.4,2611.3,0.001]
[1752011791641,47.7483387,2611.4,2611.3,0.001]
[1752011793384,41.9173387,2611.4,2611.3,0.001]
[1752011793555,47.7483387,2611.4,2611.3,0.001]
[1752011794078,47.75039538,2611.4,2611.3,0.001]
[1752011795152,48.61074613,2611.4,2611.3,0.001]
[1752011795855,46.31898058,2611.4,2611.3,0.001]
[1752011798081,48.61779604,2611.4,2611.3,0.001]
[1752011801585,41.21979604,2611.4,2611.3,0.001]
[1752011801792,44.75198058,2611.4,2611.3,0.001]
[1752011802995,47.05079604,2611.4,2611.3,0.001]
[1752011803194,44.75198058,2611.4,2611.3,0.001]
[1752011803402,47.05079604,2611.4,2611.3,0.001]
[1752011803605,44.75198058,2611.4,2611.3,0.001]
[1752011806503,40.75198058,2611.4,2611.3,0.001]
[1752011807577,42.40598058,2611.4,2611.3,0.001]
[1752011807795,44.70479604,2611.4,2611.3,0.001]
[1752011808001,42.40598058,2611.4,2611.3,0.001]
[1752011808201,44.70479604,2611.4,2611.3,0.001]
[1752011809425,48.70479604,2611.4,2611.3,0.001]
[1752011811719,48.70616342,2611.4,2611.3,0.001]
[1752011812022,49.66529479,2611.4,2611.3,0.001]
[1752011812189,49.66611004,2611.4,2611.3,0.001]
[1752011812391,47.36729458,2611.4,2611.3,0.001]
[1752011816339,46.40816321,2611.4,2611.3,0.001]
[1752011817315,46.40887226,2611.4,2611.3,0.001]
[1752011819116,48.70768772,2611.4,2611.3,0.001]
[1752011819312,49.66681909,2611.4,2611.3,0.001]
[1752011820137,49.66679998,2611.4,2611.3,0.001]
[1752011821131,49.66579998,2611.4,2611.3,0.001]
[1752011821850,47.05266861,2611.4,2611.3,0.001]
[1752011822054,47.05265371,2611.4,2611.3,0.001]
[1752011824143,41.22265371,2611.4,2611.3,0.001]
[1752011824457,44.75383825,2611.4,2611.3,0.001]
[1752011825060,40.75383825,2611.4,2611.3,0.001]
[1752011826526,34.92383825,2611.4,2611.3,0.001]
[1752011826726,40.35939757,2611.4,2611.3,0.001]
[1752011826960,34.53039757,2611.4,2611.3,0.001]
[1752011827256,39.52658487,2611.4,2611.3,0.001]
[1752011827656,19.86822132,2611.4,2611.3,0.001]
[1752011828158,25.88842132,2611.4,2611.3,1.5867]
[1752011828535,24.50849705,2611.4,2611.3,1.5867]
[1752011828959,18.67949705,2611.4,2611.3,1.5867]
[1752011829356,24.50849705,2611.4,2611.3,1.5867]
[1752011829559,16.57849705,2611.4,2611.3,1.5867]
[1752011829760,10.199,2611.4,2611.3,6.34092069]
[1752011829962,16.028,2611.4,2611.3,6.34092069]
[1752011830527,16.028,2611.4,2611.3,2.51141049]
[1752011831642,16.028,2611.4,2611.3,1.5867]
[1752011833372,15.028,2611.4,2611.3,1.5867]
[1752011834168,18.85736355,2611.4,2611.3,1.5867]
[1752011834463,15.028,2611.4,2611.3,1.5867]
[1752011842380,18.85736355,2611.4,2611.3,1.5867]
[1752011848573,9.65836355,2611.4,2611.3,1.5867]
[1752011849991,5.826,2611.4,2611.3,1.5867]
[1752011850167,5.87386704,2611.4,2611.3,1.5867]
[1752011850366,9.70323059,2611.4,2611.3,1.5867]
[1752011850579,9.65536355,2611.4,2611.3,1.5867]
[1752011852596,9.65536355,2611.4,2611.3,0.001]
[1752011858191,10.01452007,2611.4,2611.3,0.001]
[1752011858923,9.65536355,2611.4,2611.3,0.001]
[1752011859236,10.01451852,2611.4,2611.3,0.001]
[1752011859394,10.01455437,2611.4,2611.3,0.001]
[1752011862321,9.65536355,2611.4,2611.3,0.001]
[1752011862530,10.01457306,2611.4,2611.3,0.001]
[1752011862829,10.01457149,2611.4,2611.3,0.001]
[1752011865329,10.0145951,2611.4,2611.3,0.001]
[1752011866431,5.02050402,2611.5,2611.3,0.001]
[1752011866627,5.87286704,2611.4,2611.3,0.001]
[1752011866832,12.35655029,2611.4,2611.3,0.001]
[1752011867002,12.6679138,2611.4,2611.3,0.001]
[1752011867948,14.04731243,2611.4,2611.3,0.001]
[1752011868310,15.5564438,2611.4,2611.3,0.001]
[1752011868640,26.05252625,2611.4,2611.3,0.001]
[1752011869043,26.05252625,2611.4,2611.3,1e-08]
[1752011869239,29.05252625,2611.4,2611.3,1e-08]
[1752011869431,26.05252625,2611.4,2611.3,1e-08]
[1752011869742,27.77574691,2611.4,2611.3,1e-08]
[1752011871118,27.77536555,2611.4,2611.3,1e-08]
[1752011871667,26.05214489,2611.4,2611.3,1e-08]
[1752011871835,27.77536555,2611.4,2611.3,1e-08]
[1752011872441,26.05214489,2611.4,2611.3,1e-08]
[1752011872643,27.77536555,2611.4,2611.3,1e-08]
[1752011872857,35.70536555,2611.4,2611.3,1e-08]
[1752011873518,33.98214489,2611.4,2611.3,1e-08]
[1752011873942,33.6232957,2611.4,2611.3,1e-08]
[1752011874146,33.9818638,2611.4,2611.3,1e-08]
[1752011876647,26.0518638,2611.4,2611.3,1e-08]
[1752011879747,20.2268638,2611.4,2611.3,1e-08]
[1752011879942,1.92916673,2611.4,2611.3,1e-08]
[1752011880169,0.5497681,2611.4,2611.3,1e-08]
[1752011880382,0.3585681,2611.4,2611.3,12.05281574]
[1752011880558,0.002,2611.6,2611.4,3.82922333]
[1752011880760,0.002,2611.6,2611.5,7.24313014]
[1752011880956,0.002,2611.6,2611.5,7.24312867]
[1752011881160,6.18524322,2611.6,2611.5,7.24312867]
[1752011881383,6.18524322,2611.6,2611.5,7.22412083]
[1752011881594,0.002,2611.6,2611.5,7.22412083]
[1752011881775,5.827,2611.6,2611.5,7.22412083]
[1752011886414,5.826,2611.6,2611.5,7.22412083]
[1752011888112,0.002,2611.6,2611.5,7.22412083]
[1752011888314,5.826,2611.6,2611.5,7.22412083]
[1752011891410,0.002,2611.6,2611.5,7.22412083]
[1752011891725,5.825,2611.6,2611.5,7.22412083]
[1752011893961,0.002,2611.6,2611.5,7.22412083]
[1752011894161,5.825,2611.6,2611.5,7.24312867]
[1752011894451,5.825,2611.6,2611.5,7.22412083]
[1752011898362,0.002,2611.6,2611.5,7.22412083]
[1752011898566,5.824,2611.6,2611.5,7.22412083]
[1752011907278,5.824,2611.6,2611.5,0.1912]
[1752011907660,5.824,2611.6,2611.3,1e-08]
[1752011907980,5.824,2611.6,2611.3,3.82949929]
[1752011908394,5.824,2611.6,2611.3,1e-08]
[1752011909006,5.824,2611.6,2611.3,3.82943599]
[1752011911703,5.824,2611.6,2611.4,3.82933159]
[1752011914299,5.824,2611.6,2611.4,3.82936355]
[1752011914815,5.824,2611.6,2611.5,3.82921692]
[1752011915114,5.822,2611.6,2611.5,3.82921692]
[1752011921320,0.002,2611.6,2611.5,6.24339969]
[1752011921490,0.002,2611.6,2611.5,12.06339969]
[1752011921674,0.002,2611.6,2611.5,22.04439185]
[1752011921881,9.3892,2612.5,2611.5,22.04439185]
[1752011921882,9.3892,2612.5,2612.4,3.82789771]
[1752011922076,10.76777992,2612.5,2612.4,3.82789771]
[1752011922613,16.58777992,2612.5,2612.4,3.82789771]
[1752011922981,10.76777992,2612.5,2612.4,3.82789771]
[1752011923184,1.5941,2612.7,2612.6,3.82760468]
[1752011923185,0.002,2612.7,2612.6,3.82760468]
[1752011923585,5.821,2612.7,2612.6,3.82760468]
[1752011923816,7.19889568,2612.7,2612.6,3.82760468]
[1752011924716,7.19835655,2612.7,2612.6,3.82760468]
[1752011925420,5.821,2612.7,2612.6,3.82760468]
[1752011926120,0.002,2612.7,2612.6,3.82760468]
[1752011926314,5.821,2612.7,2612.6,3.82760468]
[1752011928541,0.002,2612.7,2612.6,3.82760468]
[1752011928720,5.82,2612.7,2612.6,4.84296926]
[1752011929714,0.002,2612.7,2612.6,4.8619368]
[1752011929909,0.002,2612.7,2612.6,5.0531368]
[1752011930214,0.002,2612.7,2612.6,16.7083368]
[1752011930420,0.002,2612.7,2612.6,16.68936926]
[1752011930622,1e-08,2612.7,2612.6,17.23936926]
[1752011933121,1e-08,2612.7,2612.6,16.68936926]
[1752011933324,1e-08,2612.7,2612.6,22.50636926]
[1752011934217,1e-08,2612.7,2612.6,16.68936926]
[1752011934432,1e-08,2612.7,2612.6,22.50636926]
[1752011935940,1e-08,2612.7,2612.6,16.68936926]
[1752011936150,1e-08,2612.7,2612.6,22.50536926]
[1752011940653,1e-08,2612.7,2612.6,24.91267479]
[1752011940859,1e-08,2612.7,2612.6,30.72767479]
[1752011941972,1e-08,2612.7,2612.6,16.68936926]
[1752011942253,1e-08,2612.7,2612.6,1.20656458]
[1752011942474,1e-08,2612.7,2612.1,3.82833735]
[1752011942671,1e-08,2612.7,2612.3,0.1912]
[1752011942672,0.23904323,2612.7,2612.3,0.1912]
[1752011942828,3.82762633,2612.6,2612.3,0.1912]
[1752011943158,4.06657758,2612.7,2612.3,0.1912]
[1752011943337,3.82761999,2612.6,2612.3,0.1912]
[1752011943742,4.06654913,2612.7,2612.3,0.1912]
[1752011945952,0.19120001,2612.7,2612.4,3.82789289]
[1752011946157,0.19120001,2612.7,2612.3,4.01918527]
[1752011946834,0.19120001,2612.7,2612.4,3.82788295]
[1752011947224,0.19120001,2612.7,2612.5,0.35575494]
[1752011947452,6.00620001,2612.7,2612.6,0.35575494]
[1752011947646,11.02510687,2612.7,2612.6,0.35575494]
[1752011947844,10.97726365,2612.7,2612.6,0.35575494]
[1752011948158,12.60906365,2612.7,2612.6,0.35575494]
[1752011948660,12.96592147,2612.7,2612.6,0.10672196]
[1752011948963,12.96592147,2612.7,2612.0,13.75279438]
[1752011949261,12.96592147,2612.7,2611.8,0.78337405]
[1752011949447,12.96592147,2612.7,2611.5,0.64490347]
[1752011949646,12.96592147,2612.7,2611.3,8.22330554]
[1752011949647,5.46013735,2612.1,2612.0,0.1912]
[1752011949852,11.79199777,2612.1,2612.0,0.1912]
[1752011950040,3.82883465,2611.8,2611.4,4.02055959]
[1752011950239,5.815,2611.7,2611.4,4.02055959]
[1752011950441,5.815,2611.7,2611.4,0.1912]
[1752011951266,5.815,2611.7,2611.4,10.1912]
[1752011951435,5.815,2611.7,2611.4,15.80568489]
[1752011951633,5.815,2611.7,2611.4,5.80568489]
[1752011951850,0.1912,2611.9,2611.4,1.99533819]
[1752011952053,1.6318,2612.0,2611.6,4.0202703]
[1752011952054,5.815,2611.7,2611.6,4.0202703]
[1752011952264,5.35516962,2611.7,2611.6,14.0202703]
[1752011952433,5.35516962,2611.7,2611.6,15.60271115]
[1752011953061,5.815,2611.9,2611.8,3.82877708]
[1752011953473,5.815,2611.9,2611.8,4.01997708]
[1752011953661,1.6318,2612.0,2611.8,0.1912]
[1752011953860,5.816,2612.1,2611.9,3.82863049]
[1752011954400,5.816,2612.1,2611.9,3.82855406]
[1752011954587,1.8521,2612.2,2611.9,3.82855406]
[1752011954792,5.816,2612.1,2611.9,3.82855406]
[1752011955300,5.816,2612.1,2612.0,3.82848392]
[1752011956699,1.8521,2612.2,2612.0,3.82848392]
[1752011956884,5.816,2612.1,2612.0,4.37839229]
[1752011957400,5.816,2612.1,2612.0,0.55]
[1752011958401,5.816,2612.1,2611.9,0.1922]
[1752011958698,1.5909,2612.2,2611.9,0.7422]
[1752011958910,5.816,2612.1,2611.9,0.7422]
[1752011959599,5.816,2612.0,2611.9,4.57074224]
[1752011966383,5.816,2612.0,2611.9,4.02074224]
[1752011970109,1.7418,2612.4,2611.9,10.1922]
[1752011970299,5.816,2612.3,2612.2,3.82819079]
[1752011970804,5.816,2612.3,2612.2,4.18517542]
[1752011970805,4.57073796,2612.3,2612.2,4.18517542]
[1752011970977,1.9556877,2612.3,2612.2,4.18517542]
[1752011971179,0.21232882,2612.3,2612.2,4.18517542]
[1752011971508,0.1912,2612.5,2612.2,4.18517542]
[1752011971710,5.816,2612.4,2612.3,0.35698463]
[1752011971909,1.5506,2612.6,2612.4,3.82789771]
[1752011972074,5.816,2612.5,2612.4,3.82789771]
[1752011972278,5.816,2612.5,2612.4,4.18538166]
[1752011972478,1e-08,2612.7,2612.5,3.82775119]
[1752011972678,1e-08,2612.7,2612.6,0.35748395]
[1752011972901,5.81600001,2612.7,2612.6,0.35748395]
[1752011974382,6.96341276,2612.7,2612.6,0.35748395]
[1752011975808,6.96341276,2612.7,2612.4,3.82781432]
[1752011977219,5.81600001,2612.7,2612.4,3.82781432]
[1752011978009,5.81600001,2612.7,2612.5,0.35770503]
[1752011978010,3.82760468,2612.6,2612.5,0.35770503]
[1752011978218,5.35930468,2612.6,2612.5,0.35770503]
[1752011978786,5.40714973,2612.6,2612.5,0.35770503]
[1752011979922,3.82790982,2612.4,2612.1,0.1912]
[1752011980111,5.815,2612.3,2612.1,0.1912]
[1752011980816,5.815,2612.3,2612.2,0.35791228]
[1752011981831,5.815,2612.3,2612.1,0.1912]
[1752011983425,5.815,2612.3,2612.1,4.01952179]
[1752011983891,5.815,2612.3,2612.2,0.3579642]
[1752011985791,5.815,2612.3,2612.2,0.35796908]
[1752011986821,5.56595012,2612.3,2612.2,0.35796908]
[1752011987122,0.1912,2612.5,2612.2,0.35796908]
[1752011987314,5.815,2612.3,2612.2,3.82819079]
[1752011987510,5.44144551,2612.3,2612.2,4.97090017]
[1752011988614,0.1912,2612.5,2612.3,3.82799987]
[1752011988832,0.1912,2612.5,2612.4,0.35793966]
[1752011989125,6.0062,2612.5,2612.4,0.35793966]
[1752011990796,5.50811989,2612.5,2612.4,0.35793966]
[1752011991938,9.33587108,2612.5,2612.4,0.35793966]
[1752011992231,5.50811989,2612.5,2612.4,0.35793966]
[1752011994806,10.67132433,2612.5,2612.4,0.35793966]
[1752011996402,9.33587108,2612.5,2612.4,0.35793966]
[1752011996835,8.83777011,2612.5,2612.4,0.35793966]
[1752011997534,8.46419434,2612.5,2612.4,0.35793966]
[1752011997737,8.46419434,2612.5,2612.4,0.35823691]
[1752011999241,4.63644315,2612.5,2612.4,0.35823691]
[1752012000127,8.46419434,2612.5,2612.4,0.35823691]
[1752012000446,8.46619434,2612.5,2612.4,0.35823691]
[1752012000653,4.63844315,2612.5,2612.4,0.35823691]
[1752012000831,0.002,2612.5,2612.4,0.35823691]
[1752012001034,0.002,2612.5,2612.4,4.59568227]
[1752012001227,1e-08,2612.7,2612.4,4.59568227]
[1752012001228,1e-08,2612.7,2612.6,3.82760468]
[1752012001529,1e-08,2612.7,2612.6,5.90384159]
[1752012001731,1e-08,2612.7,2612.6,5.92280913]
[1752012002050,0.1912,2613.1,2612.9,3.82707284]
[1752012002217,0.1912,2613.1,2613.0,0.35823691]
[1752012002418,6.0062,2613.1,2613.0,0.35823691]
[1752012002834,5.50821702,2613.1,2613.0,0.35823691]
[1752012003463,5.815,2613.1,2613.0,0.35823691]
[1752012005977,5.816,2613.7,2613.6,0.35823691]
[1752012006177,0.002,2613.7,2613.6,0.35823691]
[1752012006358,5.4126938,2613.7,2613.6,0.35823691]
[1752012006792,11.2266938,2613.7,2613.6,0.35823691]
[1752012007449,7.4007,2613.7,2613.6,0.35823691]
[1752012007764,7.44852492,2613.7,2613.6,0.35823691]
[1752012007970,11.27451872,2613.7,2613.6,0.35823691]
[1752012008172,12.75584164,2613.7,2613.6,0.35823691]
[1752012008662,13.75584164,2613.7,2613.6,0.35823691]
[1752012009248,4.11584784,2613.7,2613.6,0.35823691]
[1752012009451,0.002,2613.7,2613.6,4.18437709]
[1752012010199,0.002,2613.7,2613.6,4.39450801]
[1752012011363,0.002,2613.7,2613.6,4.39196578]
[1752012011696,0.002,2613.7,2613.6,5.89066578]
[1752012012497,0.002,2613.7,2613.6,5.87173486]
[1752012012694,0.002,2613.7,2613.6,18.8140959]
[1752012012994,0.002,2613.7,2613.6,18.79516498]
[1752012022215,0.002,2613.7,2613.6,24.60616498]